fUSD/lending_fUSD_20240517
["ID","MTS","AMOUNT","RATE_DAILY","PERIOD"]
[327292692,1715968968368,955.56684863,7.116e-05,2]
[327292693,1715968986373,955.56684863,7.116e-05,2]
[327292694,1715968986924,33038.8898591,7.49e-05,2]
[327292695,1715969006372,955.56684863,7.116e-05,2]
[327292696,1715969028365,187.77042249,7.116e-05,2]
[327292717,1715969355589,315.46,8.219e-05,2]
[327292720,1715969403232,151.01729513,0.000235,120]
[327292730,1715969434119,-281.78392074,0.00010364,2]
[327292731,1715969434129,-166.57270021,0.00010365,2]
[327292732,1715969434138,-250.0,0.00010434,2]
[327292733,1715969434147,-581.40677926,0.00010465,2]
[327292734,1715969434156,-430.9997486,0.00010467,2]
[327292735,1715969434170,-69.0002514,0.00010467,2]
[327292736,1715969434179,-699.94668673,0.0001048,2]
[327292737,1715969434191,-221.93331327,0.0001048,2]
[327292738,1715969434202,-315.46,0.00010481,2]
[327292739,1715969434212,-250.0,0.00010489,2]
[327292740,1715969434221,-166.57270021,0.00010508,2]
[327292741,1715969434231,-3712.63398652,0.00010528,2]
[327292742,1715969434243,-20187.36601348,0.00010528,2]
[327292743,1715969434252,-299.99,0.00010528,2]
[327292744,1715969434262,-155.71,0.00010556,2]
[327292745,1715969434272,-1617.29,0.00010573,2]
[327292746,1715969434282,-263.56,0.00010626,2]
[327292747,1715969434291,-458.87,0.00010626,2]
[327292748,1715969434300,-166.57270021,0.00010651,2]
[327292749,1715969434310,-166.57270021,0.00010794,2]
[327292750,1715969434319,-166.57270021,0.00010936,2]
[327292751,1715969434329,-740.18,0.00010959,2]
[327292752,1715969434338,-150.0,0.00010959,2]
[327292753,1715969434347,-1716.361,0.00010973,2]
[327292754,1715969434356,-415.08762495,0.00011,2]
[327292755,1715969434365,-177.2,0.00011038,2]
[327292756,1715969434375,-4395.03703088,0.00011073,2]
[327292757,1715969434384,-255.93455918,0.00011073,2]
[327292758,1715969434393,-166.57270021,0.00011079,2]
[327292759,1715969434403,-166.57270021,0.00011222,2]
[327292760,1715969434412,-164.98,0.00011323,2]
[327292761,1715969434421,-166.57270021,0.00011365,2]
[327292762,1715969434430,-155.19873687,0.00011365,2]
[327292763,1715969434439,-1000.0,0.00011367,2]
[327292764,1715969434449,-174.76024922,0.00011368,2]
[327292765,1715969434458,-178.96058679,0.0001139,2]
[327292766,1715969434468,-3294.5341937,0.0001139,2]
[327292767,1715969434480,-182.11918499,0.00011427,2]
[327292768,1715969434490,-22623.88577628,0.00011454,2]
[327292769,1715969434499,-183.05942095,0.00011454,2]
[327292770,1715969434508,-161.5,0.00011454,2]
[327292771,1715969434519,-161.5,0.00011455,2]
[327292772,1715969434528,-161.5,0.00011455,2]
[327292773,1715969434537,-161.5,0.00011455,2]
[327292774,1715969434546,-688241.51406584,0.00011464,2]
[327292775,1715969434556,-620480.46687236,0.00011465,2]
[327292778,1715969434580,-1712.57125797,0.00011465,2]
[327292780,1715969434591,-632063.48472798,0.00011465,2]
[327292782,1715969434602,-13577.58281677,0.00011465,2]
[327292808,1715969435423,-2464.76794777,0.00011465,2]
[327292809,1715969435499,-8198.73936977,0.00011465,2]
[327292843,1715969439669,-6660.60552268,0.00011465,2]
[327292865,1715969439831,-648.70118642,0.00011465,2]
[327292866,1715969439844,-272.32466048,0.00011465,2]
[327292867,1715969439856,-493.68166636,0.00011465,2]
[327292868,1715969439868,-3088.66579998,0.00011465,2]
[327292869,1715969439880,-26463.33993853,0.00011465,2]
[327292870,1715969439892,-3079.46159989,0.00011465,2]
[327292872,1715969439903,-995.79695,0.00011465,2]
[327292874,1715969439997,-54370.83022999,0.00011465,2]
[327292876,1715969440010,-243251.86888357,0.00011465,2]
[327292878,1715969440020,-225.9,0.000115,2]
[327292880,1715969440030,-3294.53419364,0.00011527,2]
[327292882,1715969440040,-1000.0,0.00011627,2]
[327292884,1715969440050,-3294.53419364,0.00011665,2]
[327292886,1715969440060,-245.44,0.00011752,2]
[327292888,1715969440069,-3294.53419364,0.00011802,2]
[327292890,1715969440079,-12440.1417857,0.00011898,2]
[327292892,1715969440089,-12440.14178564,0.00011898,2]
[327292894,1715969440098,-12440.14178564,0.00011898,2]
[327292896,1715969440107,-12440.14178564,0.00011898,2]
[327292898,1715969440117,-501.0,0.00011937,2]
[327292900,1715969440127,-3294.53419364,0.00011939,2]
[327292902,1715969440137,-263.56,0.00011954,2]
[327292904,1715969440147,-12440.14178564,0.00012047,2]
[327292906,1715969440157,-3294.53419364,0.00012076,2]
[327292908,1715969440169,-328.02808541,0.00012158,2]
[327292910,1715969440179,-1136.92665667,0.00012158,2]
[327292912,1715969440188,-1656.93388619,0.00012199,2]
[327292914,1715969440198,-3294.53419364,0.00012214,2]
[327292916,1715969440208,-12440.14178564,0.00012218,2]
[327292918,1715969440218,-196.04475242,0.00012228,2]
[327292920,1715969440228,-195.018286,0.00012311,2]
[327292922,1715969440238,-170.650014,0.00012311,2]
[327292924,1715969440248,-2625.742362,0.00012311,2]
[327292926,1715969440258,-311.592009,0.00012311,2]
[327292928,1715969440268,-154.757108,0.00012311,2]
[327292930,1715969440279,-10231.390668,0.00012311,2]
[327292932,1715969440288,-4337.129288,0.00012311,2]
[327292935,1715969440299,-207.309201,0.00012311,2]
[327292937,1715969440309,-875.247454,0.00012311,2]
[327292939,1715969440318,-500.0,0.00012328,2]
[327292940,1715969440328,-500.0,0.00012328,2]
[327292943,1715969440338,-170.65,0.00012328,2]
[327292945,1715969440351,-500.0,0.00012328,2]
[327292947,1715969440362,-458.87555676,0.00012328,2]
[327292950,1715969440371,-500.0,0.00012328,2]
[327292952,1715969440382,-500.0,0.00012328,2]
[327292954,1715969440392,-500.0,0.00012328,2]
[327292956,1715969440401,-500.0,0.00012328,2]
[327292958,1715969440411,-500.0,0.00012328,2]
[327292960,1715969440426,-500.0,0.00012328,2]
[327292962,1715969440436,-500.0,0.00012328,2]
[327292965,1715969440447,-500.0,0.00012328,2]
[327292966,1715969440456,-391.36082151,0.00012328,2]
[327292969,1715969440468,-500.0,0.00012328,2]
[327292971,1715969440480,-500.0,0.00012328,2]
[327292973,1715969440490,-500.0,0.00012328,2]
[327292975,1715969440500,-500.0,0.00012328,2]
[327292977,1715969440511,-500.0,0.00012328,2]
[327292979,1715969440521,-500.0,0.00012328,2]
[327292981,1715969440531,-500.0,0.00012328,2]
[327292983,1715969440541,-500.0,0.00012328,2]
[327292985,1715969440553,-322.31,0.00012328,2]
[327292987,1715969440562,-545.66,0.00012328,2]
[327292989,1715969440572,-160.64,0.00012328,2]
[327292991,1715969440582,-500.0,0.00012328,2]
[327292993,1715969440592,-500.0,0.00012328,2]
[327292995,1715969440601,-500.0,0.00012328,2]
[327292997,1715969440611,-500.0,0.00012328,2]
[327292999,1715969440620,-500.0,0.00012328,2]
[327293001,1715969440630,-500.0,0.00012328,2]
[327293003,1715969440639,-574.84,0.00012328,2]
[327293005,1715969440650,-500.0,0.00012328,2]
[327293007,1715969440660,-500.0,0.00012328,2]
[327293010,1715969440673,-500.0,0.00012328,2]
[327293012,1715969440684,-500.0,0.00012328,2]
[327293014,1715969440694,-500.0,0.00012328,2]
[327293016,1715969440703,-500.0,0.00012328,2]
[327293018,1715969440717,-500.0,0.00012328,2]
[327293020,1715969440728,-500.0,0.00012328,2]
[327293022,1715969440737,-313.38,0.00012328,2]
[327293024,1715969440748,-500.0,0.00012328,2]
[327293026,1715969440757,-500.0,0.00012328,2]
[327293028,1715969440767,-500.0,0.00012328,2]
[327293030,1715969440777,-500.0,0.00012328,2]
[327293032,1715969440787,-500.0,0.00012328,2]
[327293034,1715969440797,-500.0,0.00012328,2]
[327293036,1715969440808,-192.14023099,0.00012328,2]
[327293038,1715969440818,-500.0,0.00012328,2]
[327293040,1715969440828,-500.0,0.00012328,2]
[327293043,1715969440838,-500.0,0.00012328,2]
[327293045,1715969440847,-500.0,0.00012328,2]
[327293046,1715969440857,-500.0,0.00012328,2]
[327293049,1715969440867,-480.1494943,0.00012328,2]
[327293051,1715969440876,-591.29,0.00012328,2]
[327293053,1715969440886,-500.0,0.00012328,2]
[327293055,1715969440895,-500.0,0.00012328,2]
[327293057,1715969440905,-500.0,0.00012328,2]
[327293059,1715969440918,-150.0,0.00012328,2]
[327293061,1715969440928,-500.0,0.00012328,2]
[327293063,1715969440941,-500.0,0.00012328,2]
[327293065,1715969440951,-500.0,0.00012328,2]
[327293067,1715969440960,-500.0,0.00012328,2]
[327293069,1715969440970,-500.0,0.00012328,2]
[327293071,1715969440979,-500.0,0.00012328,2]
[327293073,1715969440988,-500.0,0.00012328,2]
[327293075,1715969440999,-500.0,0.00012328,2]
[327293077,1715969441008,-500.0,0.00012328,2]
[327293079,1715969441018,-500.0,0.00012328,2]
[327293081,1715969441027,-500.0,0.00012328,2]
[327293083,1715969441037,-500.0,0.00012328,2]
[327293085,1715969441046,-500.0,0.00012328,2]
[327293087,1715969441056,-500.0,0.00012328,2]
[327293089,1715969441066,-506.51,0.00012328,2]
[327293091,1715969441076,-500.0,0.00012328,2]
[327293092,1715969441085,-500.0,0.00012328,2]
[327293094,1715969441095,-500.0,0.00012328,2]
[327293096,1715969441105,-534.15,0.00012328,2]
[327293099,1715969441115,-500.0,0.00012328,2]
[327293101,1715969441124,-500.0,0.00012328,2]
[327293103,1715969441134,-500.0,0.00012328,2]
[327293104,1715969441143,-500.0,0.00012328,2]
[327293107,1715969441154,-500.0,0.00012328,2]
[327293109,1715969441163,-500.0,0.00012328,2]
[327293111,1715969441177,-500.0,0.00012328,2]
[327293113,1715969441187,-500.0,0.00012328,2]
[327293115,1715969441195,-500.0,0.00012328,2]
[327293117,1715969441205,-500.0,0.00012328,2]
[327293119,1715969441214,-483.06,0.00012328,2]
[327293121,1715969441223,-500.0,0.00012328,2]
[327293123,1715969441232,-500.0,0.00012328,2]
[327293125,1715969441242,-500.0,0.00012328,2]
[327293127,1715969441252,-500.0,0.00012328,2]
[327293129,1715969441261,-500.0,0.00012328,2]
[327293131,1715969441271,-500.0,0.00012328,2]
[327293133,1715969441280,-500.0,0.00012328,2]
[327293135,1715969441289,-500.0,0.00012328,2]
[327293137,1715969441299,-500.0,0.00012328,2]
[327293139,1715969441309,-500.0,0.00012328,2]
[327293141,1715969441319,-233.02,0.00012328,2]
[327293143,1715969441328,-500.0,0.00012328,2]
[327293145,1715969441337,-500.0,0.00012328,2]
[327293147,1715969441346,-500.0,0.00012328,2]
[327293149,1715969441357,-500.0,0.00012328,2]
[327293151,1715969441366,-500.0,0.00012328,2]
[327293153,1715969441376,-500.0,0.00012328,2]
[327293155,1715969441385,-500.0,0.00012328,2]
[327293157,1715969441394,-500.0,0.00012328,2]
[327293159,1715969441404,-500.0,0.00012328,2]
[327293161,1715969441413,-500.0,0.00012328,2]
[327293163,1715969441425,-500.0,0.00012328,2]
[327293165,1715969441435,-500.0,0.00012328,2]
[327293167,1715969441445,-500.0,0.00012328,2]
[327293169,1715969441455,-500.0,0.00012328,2]
[327293171,1715969441465,-500.0,0.00012328,2]
[327293173,1715969441476,-500.0,0.00012328,2]
[327293175,1715969441486,-500.0,0.00012328,2]
[327293177,1715969441495,-500.0,0.00012328,2]
[327293178,1715969441505,-500.0,0.00012328,2]
[327293179,1715969441514,-500.0,0.00012328,2]
[327293180,1715969441523,-500.0,0.00012328,2]
[327293181,1715969441532,-500.0,0.00012328,2]
[327293182,1715969441541,-500.0,0.00012328,2]
[327293183,1715969441550,-300.37,0.00012328,2]
[327293184,1715969441563,-500.0,0.00012328,2]
[327293185,1715969441573,-500.0,0.00012328,2]
[327293186,1715969441582,-153.70474194,0.00012328,2]
[327293187,1715969441600,-346.29525806,0.00012328,2]
[327293188,1715969441609,-500.0,0.00012328,2]
[327293189,1715969441618,-500.0,0.00012328,2]
[327293190,1715969441627,-500.0,0.00012328,2]
[327293192,1715969441636,-500.0,0.00012328,2]
[327293194,1715969441645,-500.0,0.00012328,2]
[327293196,1715969441655,-486.68139162,0.00012328,2]
[327293198,1715969441670,-13.31860838,0.00012328,2]
[327293200,1715969441680,-363.32296868,0.00012328,2]
[327293208,1715969441744,-136.67703132,0.00012328,2]
[327293210,1715969441754,-500.0,0.00012328,2]
[327293212,1715969441763,-497.57,0.00012328,2]
[327293214,1715969441773,-500.0,0.00012328,2]
[327293216,1715969441783,-500.0,0.00012328,2]
[327293218,1715969441793,-500.0,0.00012328,2]
[327293220,1715969441802,-225.272,0.00012328,2]
[327293222,1715969441812,-500.0,0.00012328,2]
[327293224,1715969441822,-500.0,0.00012328,2]
[327293227,1715969441831,-323.48239389,0.00012328,2]
[327293229,1715969441841,-500.0,0.00012328,2]
[327293230,1715969441850,-500.0,0.00012328,2]
[327293233,1715969441860,-500.0,0.00012328,2]
[327293235,1715969441869,-500.0,0.00012328,2]
[327293237,1715969441878,-500.0,0.00012328,2]
[327293239,1715969441888,-231.60342327,0.00012328,2]
[327293241,1715969441897,-500.0,0.00012328,2]
[327293243,1715969441906,-500.0,0.00012328,2]
[327293245,1715969441916,-500.0,0.00012328,2]
[327293247,1715969441927,-500.0,0.00012328,2]
[327293249,1715969441937,-159.7,0.00012328,2]
[327293251,1715969441946,-500.0,0.00012328,2]
[327293253,1715969441957,-441.94515153,0.00012328,2]
[327293255,1715969441969,-58.05484847,0.00012328,2]
[327293257,1715969441979,-500.0,0.00012328,2]
[327293260,1715969441988,-32.46727388,0.00012328,2]
[327293266,1715969442035,-467.53272612,0.00012328,2]
[327293268,1715969442044,-500.0,0.00012328,2]
[327293270,1715969442055,-500.0,0.00012328,2]
[327293272,1715969442065,-500.0,0.00012328,2]
[327293274,1715969442074,-636.87,0.00012328,2]
[327293276,1715969442083,-306.74,0.00012328,2]
[327293278,1715969442092,-541.21,0.00012328,2]
[327293280,1715969442103,-308.3,0.00012328,2]
[327293282,1715969442112,-500.0,0.00012328,2]
[327293284,1715969442121,-500.0,0.00012328,2]
[327293286,1715969442131,-500.0,0.00012328,2]
[327293288,1715969442140,-500.0,0.00012328,2]
[327293290,1715969442150,-500.0,0.00012328,2]
[327293292,1715969442159,-500.0,0.00012328,2]
[327293294,1715969442170,-500.0,0.00012328,2]
[327293296,1715969442179,-500.0,0.00012328,2]
[327293298,1715969442189,-500.0,0.00012328,2]
[327293301,1715969442198,-500.0,0.00012328,2]
[327293303,1715969442207,-500.0,0.00012328,2]
[327293305,1715969442217,-500.0,0.00012328,2]
[327293307,1715969442226,-500.0,0.00012328,2]
[327293309,1715969442236,-500.0,0.00012328,2]
[327293311,1715969442245,-500.0,0.00012328,2]
[327293313,1715969442255,-500.0,0.00012328,2]
[327293315,1715969442264,-500.0,0.00012328,2]
[327293317,1715969442273,-500.0,0.00012328,2]
[327293319,1715969442282,-500.0,0.00012328,2]
[327293321,1715969442291,-500.0,0.00012328,2]
[327293323,1715969442301,-500.0,0.00012328,2]
[327293325,1715969442310,-500.0,0.00012328,2]
[327293327,1715969442320,-500.0,0.00012328,2]
[327293329,1715969442329,-500.0,0.00012328,2]
[327293331,1715969442339,-500.0,0.00012328,2]
[327293333,1715969442348,-500.0,0.00012328,2]
[327293335,1715969442357,-500.0,0.00012328,2]
[327293337,1715969442366,-509.00379764,0.00012328,2]
[327293339,1715969442375,-500.0,0.00012328,2]
[327293341,1715969442384,-500.0,0.00012328,2]
[327293343,1715969442394,-500.0,0.00012328,2]
[327293345,1715969442403,-177.18,0.00012328,2]
[327293347,1715969442412,-500.0,0.00012328,2]
[327293349,1715969442425,-500.0,0.00012328,2]
[327293351,1715969442434,-500.0,0.00012328,2]
[327293353,1715969442443,-500.0,0.00012328,2]
[327293355,1715969442452,-500.0,0.00012328,2]
[327293357,1715969442461,-264.08,0.00012328,2]
[327293359,1715969442477,-614.02770136,0.00012328,2]
[327293361,1715969442486,-500.0,0.00012328,2]
[327293363,1715969442495,-500.0,0.00012328,2]
[327293365,1715969442504,-500.0,0.00012328,2]
[327293368,1715969442515,-500.0,0.00012328,2]
[327293370,1715969442524,-500.0,0.00012328,2]
[327293371,1715969442533,-430.65,0.00012328,2]
[327293373,1715969442542,-251.68945457,0.00012328,2]
[327293375,1715969442555,-500.0,0.00012328,2]
[327293376,1715969442565,-562.05017261,0.00012328,2]
[327293379,1715969442575,-268.12,0.00012328,2]
[327293381,1715969442584,-500.0,0.00012328,2]
[327293383,1715969442593,-504.87170701,0.00012328,2]
[327293384,1715969442602,-500.0,0.00012328,2]
[327293387,1715969442615,-500.0,0.00012328,2]
[327293389,1715969442624,-500.0,0.00012328,2]
[327293391,1715969442634,-500.0,0.00012328,2]
[327293393,1715969442644,-500.0,0.00012328,2]
[327293395,1715969442654,-500.0,0.00012328,2]
[327293397,1715969442664,-500.0,0.00012328,2]
[327293399,1715969442677,-500.0,0.00012328,2]
[327293401,1715969442686,-500.0,0.00012328,2]
[327293403,1715969442700,-627.18,0.00012328,2]
[327293406,1715969442710,-518.86871893,0.00012328,2]
[327293408,1715969442719,-500.0,0.00012328,2]
[327293410,1715969442728,-713.38,0.00012328,2]
[327293412,1715969442737,-713.38,0.00012328,2]
[327293414,1715969442746,-713.38,0.00012328,2]
[327293416,1715969442755,-1733.83,0.00012328,2]
[327293418,1715969442764,-713.38,0.00012328,2]
[327293420,1715969442775,-1733.83,0.00012328,2]
[327293422,1715969442784,-713.38,0.00012328,2]
[327293424,1715969442793,-1733.83,0.00012328,2]
[327293427,1715969442804,-713.38,0.00012328,2]
[327293429,1715969442813,-1733.83,0.00012328,2]
[327293431,1715969442823,-713.38,0.00012328,2]
[327293433,1715969442832,-1733.83,0.00012328,2]
[327293435,1715969442841,-1733.83,0.00012328,2]
[327293437,1715969442851,-713.38,0.00012328,2]
[327293439,1715969442861,-1733.83,0.00012328,2]
[327293441,1715969442871,-1733.83,0.00012328,2]
[327293443,1715969442880,-1733.83,0.00012328,2]
[327293445,1715969442889,-713.38,0.00012328,2]
[327293447,1715969442899,-1733.83,0.00012328,2]
[327293449,1715969442908,-713.38,0.00012328,2]
[327293451,1715969442918,-461.54173474,0.00012328,2]
[327293453,1715969442929,-500.0,0.00012328,2]
[327293455,1715969442939,-500.0,0.00012328,2]
[327293457,1715969442947,-500.0,0.00012328,2]
[327293459,1715969442957,-500.0,0.00012328,2]
[327293461,1715969442966,-162.2442746,0.00012328,2]
[327293463,1715969442976,-500.0,0.00012328,2]
[327293464,1715969442985,-500.0,0.00012328,2]
[327293466,1715969442994,-500.0,0.00012328,2]
[327293468,1715969443003,-500.0,0.00012328,2]
[327293470,1715969443013,-500.0,0.00012328,2]
[327293471,1715969443022,-500.0,0.00012328,2]
[327293473,1715969443031,-500.0,0.00012328,2]
[327293475,1715969443040,-500.0,0.00012328,2]
[327293477,1715969443050,-500.0,0.00012328,2]
[327293479,1715969443059,-492.46572184,0.00012328,2]
[327293481,1715969443069,-1783.42,0.00012328,2]
[327293483,1715969443079,-500.0,0.00012328,2]
[327293484,1715969443088,-1783.42,0.00012328,2]
[327293486,1715969443098,-500.0,0.00012328,2]
[327293488,1715969443107,-1783.42,0.00012328,2]
[327293490,1715969443116,-1783.42,0.00012328,2]
[327293492,1715969443125,-1783.42,0.00012328,2]
[327293494,1715969443135,-464.29,0.00012328,2]
[327293495,1715969443145,-1783.42,0.00012328,2]
[327293497,1715969443154,-1783.42,0.00012328,2]
[327293499,1715969443163,-1783.42,0.00012328,2]
[327293501,1715969443175,-1783.42,0.00012328,2]
[327293503,1715969443186,-1783.42,0.00012328,2]
[327293505,1715969443194,-500.0,0.00012328,2]
[327293506,1715969443203,-500.0,0.00012328,2]
[327293508,1715969443212,-500.0,0.00012328,2]
[327293510,1715969443222,-500.0,0.00012328,2]
[327293512,1715969443231,-477.4068148,0.00012328,2]
[327293514,1715969443240,-500.0,0.00012328,2]
[327293516,1715969443249,-191.04,0.00012328,2]
[327293517,1715969443258,-500.0,0.00012328,2]
[327293519,1715969443267,-500.0,0.00012328,2]
[327293521,1715969443276,-436.8082545,0.00012328,2]
[327293523,1715969443286,-500.0,0.00012328,2]
[327293525,1715969443294,-500.0,0.00012328,2]
[327293527,1715969443304,-500.0,0.00012328,2]
[327293528,1715969443313,-200.9034074,0.00012328,2]
[327293530,1715969443323,-500.0,0.00012328,2]
[327293532,1715969443332,-500.0,0.00012328,2]
[327293534,1715969443341,-500.0,0.00012328,2]
[327293536,1715969443351,-500.0,0.00012328,2]
[327293538,1715969443360,-500.0,0.00012328,2]
[327293540,1715969443369,-500.0,0.00012328,2]
[327293543,1715969443378,-500.0,0.00012328,2]
[327293545,1715969443388,-500.0,0.00012328,2]
[327293547,1715969443397,-500.0,0.00012328,2]
[327293549,1715969443406,-500.0,0.00012328,2]
[327293551,1715969443416,-500.0,0.00012328,2]
[327293553,1715969443429,-474.88,0.00012328,2]
[327293555,1715969443439,-500.0,0.00012328,2]
[327293557,1715969443448,-500.0,0.00012328,2]
[327293561,1715969443458,-500.0,0.00012328,2]
[327293565,1715969443468,-500.0,0.00012328,2]
[327293570,1715969443481,-500.0,0.00012328,2]
[327293572,1715969443491,-232.58,0.00012328,2]
[327293575,1715969443500,-500.0,0.00012328,2]
[327293577,1715969443510,-500.0,0.00012328,2]
[327293580,1715969443519,-500.0,0.00012328,2]
[327293582,1715969443529,-500.0,0.00012328,2]
[327293585,1715969443539,-500.0,0.00012328,2]
[327293588,1715969443548,-500.0,0.00012328,2]
[327293590,1715969443563,-500.0,0.00012328,2]
[327293593,1715969443573,-500.0,0.00012328,2]
[327293596,1715969443582,-500.0,0.00012328,2]
[327293598,1715969443591,-500.0,0.00012328,2]
[327293600,1715969443600,-500.0,0.00012328,2]
[327293602,1715969443609,-500.0,0.00012328,2]
[327293604,1715969443618,-455.41087651,0.00012328,2]
[327293607,1715969443627,-500.0,0.00012328,2]
[327293609,1715969443637,-473.76,0.00012328,2]
[327293611,1715969443646,-500.0,0.00012328,2]
[327293613,1715969443655,-500.0,0.00012328,2]
[327293615,1715969443664,-500.0,0.00012328,2]
[327293617,1715969443677,-500.0,0.00012328,2]
[327293619,1715969443686,-500.0,0.00012328,2]
[327293621,1715969443695,-500.0,0.00012328,2]
[327293623,1715969443705,-500.0,0.00012328,2]
[327293625,1715969443714,-500.0,0.00012328,2]
[327293627,1715969443723,-500.0,0.00012328,2]
[327293629,1715969443733,-500.0,0.00012328,2]
[327293630,1715969443742,-630.14,0.00012328,2]
[327293652,1715969443961,-640.04,0.00012328,2]
[327293654,1715969443971,-500.0,0.00012328,2]
[327293656,1715969443981,-500.0,0.00012328,2]
[327293658,1715969443990,-500.0,0.00012328,2]
[327293660,1715969443999,-500.0,0.00012328,2]
[327293662,1715969444011,-500.0,0.00012328,2]
[327293664,1715969444021,-500.0,0.00012328,2]
[327293666,1715969444031,-500.0,0.00012328,2]
[327293668,1715969444041,-500.0,0.00012328,2]
[327293670,1715969444052,-500.0,0.00012328,2]
[327293672,1715969444061,-500.0,0.00012328,2]
[327293674,1715969444071,-223.62017295,0.00012328,2]
[327293675,1715969444084,-500.0,0.00012328,2]
[327293677,1715969444097,-500.0,0.00012328,2]
[327293679,1715969444107,-500.0,0.00012328,2]
[327293681,1715969444117,-500.0,0.00012328,2]
[327293683,1715969444126,-500.0,0.00012328,2]
[327293685,1715969444136,-500.0,0.00012328,2]
[327293687,1715969444146,-500.0,0.00012328,2]
[327293689,1715969444155,-500.0,0.00012328,2]
[327293691,1715969444165,-500.0,0.00012328,2]
[327293693,1715969444178,-484.37999999,0.00012328,2]
[327293695,1715969444187,-500.0,0.00012328,2]
[327293697,1715969444197,-500.0,0.00012328,2]
[327293699,1715969444206,-500.0,0.00012328,2]
[327293700,1715969444215,-500.0,0.00012328,2]
[327293702,1715969444224,-597.83984776,0.00012328,2]
[327293704,1715969444233,-559.08176965,0.00012328,2]
[327293706,1715969444243,-380.74,0.00012328,2]
[327293708,1715969444252,-500.0,0.00012328,2]
[327293710,1715969444262,-500.0,0.00012328,2]
[327293712,1715969444271,-500.0,0.00012328,2]
[327293714,1715969444280,-500.0,0.00012328,2]
[327293716,1715969444290,-500.0,0.00012328,2]
[327293718,1715969444299,-500.0,0.00012328,2]
[327293719,1715969444308,-500.0,0.00012328,2]
[327293721,1715969444319,-500.0,0.00012328,2]
[327293723,1715969444328,-500.0,0.00012328,2]
[327293725,1715969444338,-500.0,0.00012328,2]
[327293727,1715969444347,-298.34397138,0.00012328,2]
[327293729,1715969444357,-500.0,0.00012328,2]
[327293731,1715969444366,-500.0,0.00012328,2]
[327293733,1715969444375,-207.09,0.00012328,2]
[327293736,1715969444385,-500.0,0.00012328,2]
[327293739,1715969444395,-500.0,0.00012328,2]
[327293742,1715969444405,-514.21290946,0.00012328,2]
[327293744,1715969444414,-500.0,0.00012328,2]
[327293745,1715969444428,-500.0,0.00012328,2]
[327293747,1715969444437,-500.0,0.00012328,2]
[327293749,1715969444447,-500.0,0.00012328,2]
[327293751,1715969444456,-500.0,0.00012328,2]
[327293753,1715969444466,-500.0,0.00012328,2]
[327293755,1715969444480,-500.0,0.00012328,2]
[327293757,1715969444489,-500.0,0.00012328,2]
[327293759,1715969444499,-610.98,0.00012328,2]
[327293761,1715969444508,-500.0,0.00012328,2]
[327293763,1715969444519,-500.0,0.00012328,2]
[327293765,1715969444528,-500.0,0.00012328,2]
[327293767,1715969444538,-500.0,0.00012328,2]
[327293769,1715969444547,-500.0,0.00012328,2]
[327293770,1715969444558,-500.0,0.00012328,2]
[327293771,1715969444566,-500.0,0.00012328,2]